[Event "Titled Tuesday Blitz April 26 Late 2022"]
[White "Jaferian, Koosha"]
[Black "Pourkashiyan, Atousa"]
[WhiteFideId "12507440"]
[BlackFideId "12502014"]
[WhiteElo "2030"]
[BlackElo "2247"]
[Result "0-1"]
[Round "01"]
[TimeControl "180+1"]
[Date "2022.04.26"]
[WhiteClock "0:00:07"]
[BlackClock "0:00:12"]

1. Nf3 {[%clk 0:03:00]}  d5 {[%clk 0:02:55]} 2. b3 {[%clk 0:03:01]}  Nf6 {[%clk 0:02:53]} 3. Bb2 {[%clk 0:03:01]}  e6 {[%clk 0:02:53]} 4. e3 {[%clk 0:03:02]}  Be7 {[%clk 0:02:51]} 5. Be2 {[%clk 0:03:02]}  c5 {[%clk 0:02:51]} 6. c4 {[%clk 0:03:02]}  O-O {[%clk 0:02:45]} 7. cxd5 {[%clk 0:03:02]}  Nxd5 {[%clk 0:02:45]} 8. O-O {[%clk 0:03:02]}  Nc6 {[%clk 0:02:43]} 9. d4 {[%clk 0:03:03]}  cxd4 {[%clk 0:02:40]} 10. Nxd4 {[%clk 0:03:03]}  Nxd4 {[%clk 0:02:35]} 11. Bxd4 {[%clk 0:03:04]}  Bf6 {[%clk 0:02:34]} 12. Na3 {[%clk 0:03:04]}  Bd7 {[%clk 0:02:33]} 13. Nc4 {[%clk 0:03:03]}  Bxd4 {[%clk 0:02:31]} 14. Qxd4 {[%clk 0:03:03]}  Bb5 {[%clk 0:02:29]} 15. Rfd1 {[%clk 0:03:00]}  Qf6 {[%clk 0:02:25]} 16. Rac1 {[%clk 0:02:50]}  Qxd4 {[%clk 0:02:21]} 17. Rxd4 {[%clk 0:02:51]}  Rac8 {[%clk 0:02:21]} 18. Bf3 {[%clk 0:02:45]}  Rfd8 {[%clk 0:01:58]} 19. g3 {[%clk 0:02:42]}  Kf8 {[%clk 0:01:54]} 20. Kg2 {[%clk 0:02:42]}  Ke7 {[%clk 0:01:54]} 21. Rcd1 {[%clk 0:02:29]}  b6 {[%clk 0:01:42]} 22. Bxd5 {[%clk 0:02:22]}  Rxd5 {[%clk 0:01:35]} 23. Rxd5 {[%clk 0:02:21]}  exd5 {[%clk 0:01:33]} 24. Ne5 {[%clk 0:02:18]}  f6 {[%clk 0:01:23]} 25. Nf3 {[%clk 0:02:02]}  Be2 {[%clk 0:01:15]} 26. Rxd5 {[%clk 0:01:59]}  Bxf3+ {[%clk 0:01:15]} 27. Kxf3 {[%clk 0:02:00]}  Rc2 {[%clk 0:01:15]} 28. a4 {[%clk 0:01:58]}  Rb2 {[%clk 0:01:14]} 29. Rd3 {[%clk 0:01:57]}  Ke6 {[%clk 0:01:14]} 30. e4 {[%clk 0:01:52]}  a5 {[%clk 0:01:13]} 31. Ke3 {[%clk 0:01:51]}  g5 {[%clk 0:01:13]} 32. h4 {[%clk 0:01:48]}  gxh4 {[%clk 0:01:12]} 33. gxh4 {[%clk 0:01:49]}  h5 {[%clk 0:01:13]} 34. Rc3 {[%clk 0:01:45]}  Kd6 {[%clk 0:01:10]} 35. Rd3+ {[%clk 0:01:38]}  Ke6 {[%clk 0:01:09]} 36. f4 {[%clk 0:01:13]}  Rh2 {[%clk 0:01:08]} 37. Rd8 {[%clk 0:01:13]}  Rxh4 {[%clk 0:01:01]} 38. f5+ {[%clk 0:00:49]}  Ke7 {[%clk 0:00:57]} 39. Rh8 {[%clk 0:00:48]}  Rh1 {[%clk 0:00:46]} 40. Rh7+ {[%clk 0:00:47]}  Kf8 {[%clk 0:00:38]} 41. Kd4 {[%clk 0:00:36]}  Kg8 {[%clk 0:00:27]} 42. Rb7 {[%clk 0:00:36]}  Rd1+ {[%clk 0:00:24]} 43. Ke3 {[%clk 0:00:28]}  h4 {[%clk 0:00:22]} 44. Kf4 {[%clk 0:00:21]}  h3 {[%clk 0:00:21]} 45. Kg3 {[%clk 0:00:22]}  Rd3+ {[%clk 0:00:21]} 46. Kh2 {[%clk 0:00:20]}  Rxb3 {[%clk 0:00:22]} 47. Rc7 {[%clk 0:00:13]}  Kf8 {[%clk 0:00:22]} 48. Rb7 {[%clk 0:00:14]}  Ke8 {[%clk 0:00:23]} 49. Rc7 {[%clk 0:00:13]}  Rb4 {[%clk 0:00:22]} 50. Rc6 {[%clk 0:00:10]}  Ke7 {[%clk 0:00:17]} 51. Re6+ {[%clk 0:00:10]}  Kf7 {[%clk 0:00:17]} 52. Kxh3 {[%clk 0:00:11]}  Rxa4 {[%clk 0:00:18]} 53. Rxb6 {[%clk 0:00:10]}  Rxe4 {[%clk 0:00:18]} 54. Ra6 {[%clk 0:00:11]}  a4 {[%clk 0:00:18]} 55. Kg3 {[%clk 0:00:11]}  Ke7 {[%clk 0:00:17]} 56. Kf3 {[%clk 0:00:12]}  Rb4 {[%clk 0:00:17]} 57. Re6+ {[%clk 0:00:10]}  Kf7 {[%clk 0:00:17]} 58. Ra6 {[%clk 0:00:11]}  Rc4 {[%clk 0:00:17]} 59. Ra7+ {[%clk 0:00:09]}  Kf8 {[%clk 0:00:16]} 60. Ke3 {[%clk 0:00:08]}  Rh4 {[%clk 0:00:15]} 61. Kf3 {[%clk 0:00:08]}  Ke8 {[%clk 0:00:13]} 62. Ke3 {[%clk 0:00:08]}  a3 {[%clk 0:00:12]} 63. Kf3 {[%clk 0:00:04]}  Rh3+ {[%clk 0:00:10]} 64. Ke4 {[%clk 0:00:03]}  Rb3 {[%clk 0:00:09]} 65. Kd5 {[%clk 0:00:04]}  Re3 {[%clk 0:00:09]} 66. Kd6 {[%clk 0:00:03]}  Kf8 {[%clk 0:00:09]} 67. Kc6 {[%clk 0:00:01]}  Rd3 {[%clk 0:00:07]} 68. Kc5 {[%clk 0:00:01]}  Kg8 {[%clk 0:00:07]} 69. Kc4 {[%clk 0:00:02]}  Rf3 {[%clk 0:00:07]} 70. Kd4 {[%clk 0:00:02]}  Rxf5 {[%clk 0:00:08]} 71. Rxa3 {[%clk 0:00:02]}  Kg7 {[%clk 0:00:08]} 72. Ke4 {[%clk 0:00:02]}  Rg5 {[%clk 0:00:08]} 73. Kf4 {[%clk 0:00:03]}  Kg6 {[%clk 0:00:09]} 74. Rg3 {[%clk 0:00:03]}  Rxg3 {[%clk 0:00:09]} 75. Kxg3 {[%clk 0:00:04]}  Kg5 {[%clk 0:00:09]} 76. Kf3 {[%clk 0:00:04]}  Kf5 {[%clk 0:00:10]} 77. Ke3 {[%clk 0:00:04]}  Kg4 {[%clk 0:00:10]} 78. Kf2 {[%clk 0:00:04]}  Kf4 {[%clk 0:00:11]} 79. Kg2 {[%clk 0:00:05]}  Ke3 {[%clk 0:00:11]} 80. Kg3 {[%clk 0:00:06]}  f5 {[%clk 0:00:12]} 81. Kg2 {[%clk 0:00:07]}  f4 {[%clk 0:00:12]} 82. Kf1 {[%clk 0:00:07]}  Kf3 {[%clk 0:00:12]} 0-1


[Site "https://www.chess.com"]

[Event "Titled Tuesday Blitz April 26 Late 2022"]
[White "Janaszak, Dawid"]
[Black "Kujawski, Adam"]
[WhiteFideId "1119206"]
[BlackFideId "1100920"]
[WhiteElo "2199"]
[BlackElo "2053"]
[Result "1-0"]
[Round "01"]
[TimeControl "180+1"]
[Date "2022.04.26"]
[WhiteClock "0:00:32"]
[BlackClock "0:00:02"]

1. e4 {[%clk 0:03:00]}  e5 {[%clk 0:03:00]} 2. Nf3 {[%clk 0:02:58]}  Nc6 {[%clk 0:03:00]} 3. d4 {[%clk 0:02:58]}  exd4 {[%clk 0:03:00]} 4. Nxd4 {[%clk 0:02:59]}  Bb4+ {[%clk 0:03:00]} 5. c3 {[%clk 0:02:57]}  Bc5 {[%clk 0:03:00]} 6. Be3 {[%clk 0:02:54]}  Bb6 {[%clk 0:03:00]} 7. Nf5 {[%clk 0:02:54]}  g6 {[%clk 0:03:00]} 8. Bxb6 {[%clk 0:02:52]}  axb6 {[%clk 0:03:01]} 9. Ne3 {[%clk 0:02:53]}  Nf6 {[%clk 0:03:01]} 10. f3 {[%clk 0:02:50]}  O-O {[%clk 0:03:01]} 11. Qd2 {[%clk 0:02:44]}  Re8 {[%clk 0:02:06]} 12. c4 {[%clk 0:02:43]}  Nxe4 {[%clk 0:02:06]} 13. fxe4 {[%clk 0:02:44]}  Qh4+ {[%clk 0:02:06]} 14. Kd1 {[%clk 0:02:10]}  Qxe4 {[%clk 0:02:05]} 15. Nd5 {[%clk 0:02:03]}  Qg4+ {[%clk 0:00:40]} 16. Be2 {[%clk 0:02:01]}  Qxg2 {[%clk 0:00:39]} 17. Rf1 {[%clk 0:01:57]}  Re6 {[%clk 0:00:30]} 18. Nf4 {[%clk 0:01:46]}  Qxh2 {[%clk 0:00:27]} 19. Nxe6 {[%clk 0:01:46]}  dxe6 {[%clk 0:00:26]} 20. Qf4 {[%clk 0:01:41]}  Qxf4 {[%clk 0:00:25]} 21. Rxf4 {[%clk 0:01:42]}  e5 {[%clk 0:00:26]} 22. Rf1 {[%clk 0:01:39]}  Be6 {[%clk 0:00:23]} 23. Nd2 {[%clk 0:01:37]}  f5 {[%clk 0:00:22]} 24. Bf3 {[%clk 0:01:33]}  e4 {[%clk 0:00:22]} 25. Be2 {[%clk 0:01:34]}  Nd4 {[%clk 0:00:22]} 26. Rg1 {[%clk 0:01:03]}  Kf7 {[%clk 0:00:21]} 27. a3 {[%clk 0:00:56]}  h5 {[%clk 0:00:21]} 28. Rc1 {[%clk 0:00:54]}  h4 {[%clk 0:00:20]} 29. Rc3 {[%clk 0:00:54]}  Kf6 {[%clk 0:00:19]} 30. Rf1 {[%clk 0:00:42]}  Ke5 {[%clk 0:00:18]} 31. c5 {[%clk 0:00:40]}  g5 {[%clk 0:00:14]} 32. cxb6 {[%clk 0:00:41]}  cxb6 {[%clk 0:00:14]} 33. Bc4 {[%clk 0:00:40]}  g4 {[%clk 0:00:11]} 34. Bxe6 {[%clk 0:00:40]}  Kxe6 {[%clk 0:00:11]} 35. Rc4 {[%clk 0:00:37]}  Rd8 {[%clk 0:00:09]} 36. Ke1 {[%clk 0:00:36]}  Nf3+ {[%clk 0:00:09]} 37. Nxf3 {[%clk 0:00:36]}  gxf3 {[%clk 0:00:09]} 38. Rh1 {[%clk 0:00:33]}  Rh8 {[%clk 0:00:03]} 39. Kf2 {[%clk 0:00:32]}  Ke5 {[%clk 0:00:03]} 40. Rc7 {[%clk 0:00:32]}  Kf4 {[%clk 0:00:02]} 41. Re7 {[%clk 0:00:32]} 1-0


[Site "https://www.chess.com"]

[Event "Titled Tuesday Blitz April 26 Late 2022"]
[White "Karttunen, Mika"]
[Black "Dahlgren, James Allen"]
[WhiteFideId "502081"]
[BlackFideId "22256873"]
[WhiteElo "2343"]
[BlackElo "2096"]
[Result "1-0"]
[Round "01"]
[TimeControl "180+1"]
[Date "2022.04.26"]
[WhiteClock "0:02:08"]
[BlackClock "0:02:06"]

1. e4 {[%clk 0:03:00]}  e6 {[%clk 0:03:00]} 2. d4 {[%clk 0:03:00]}  c5 {[%clk 0:03:01]} 3. d5 {[%clk 0:03:00]}  exd5 {[%clk 0:02:56]} 4. exd5 {[%clk 0:03:00]}  Nf6 {[%clk 0:02:57]} 5. Nc3 {[%clk 0:02:59]}  d6 {[%clk 0:02:57]} 6. h3 {[%clk 0:02:56]}  g6 {[%clk 0:02:54]} 7. Bd3 {[%clk 0:02:53]}  Bg7 {[%clk 0:02:49]} 8. Nf3 {[%clk 0:02:53]}  O-O {[%clk 0:02:50]} 9. O-O {[%clk 0:02:53]}  b5 {[%clk 0:02:50]} 10. Bxb5 {[%clk 0:02:53]}  Ba6 {[%clk 0:02:50]} 11. a4 {[%clk 0:02:52]}  Bxb5 {[%clk 0:02:48]} 12. axb5 {[%clk 0:02:52]}  Nbd7 {[%clk 0:02:47]} 13. Bg5 {[%clk 0:02:27]}  h6 {[%clk 0:02:45]} 14. Bh4 {[%clk 0:02:25]}  Nb6 {[%clk 0:02:40]} 15. Re1 {[%clk 0:02:23]}  Qd7 {[%clk 0:02:35]} 16. Ra6 {[%clk 0:02:15]}  Qb7 {[%clk 0:02:25]} 17. Bxf6 {[%clk 0:02:12]}  Bxf6 {[%clk 0:02:26]} 18. Ne4 {[%clk 0:02:12]}  Bxb2 {[%clk 0:02:11]} 19. c3 {[%clk 0:02:08]}  Qxd5 {[%clk 0:02:06]} 20. Nf6+ {[%clk 0:02:08]} 1-0


[Site "https://www.chess.com"]

[Event "Titled Tuesday Blitz April 26 Late 2022"]
[White "Keymer, Vincent"]
[Black "Nozdrachev, Leonid"]
[WhiteFideId "12940690"]
[BlackFideId "24113433"]
[WhiteElo "2557"]
[BlackElo "2242"]
[Result "1-0"]
[Round "01"]
[TimeControl "180+1"]
[Date "2022.04.26"]
[WhiteClock "0:00:11"]
[BlackClock "0:00:19"]

1. Nf3 {[%clk 0:03:00]}  d5 {[%clk 0:02:56]} 2. e3 {[%clk 0:03:00]}  Bg4 {[%clk 0:02:54]} 3. c4 {[%clk 0:03:00]}  c6 {[%clk 0:02:53]} 4. cxd5 {[%clk 0:02:54]}  cxd5 {[%clk 0:02:53]} 5. Qa4+ {[%clk 0:02:40]}  Bd7 {[%clk 0:02:52]} 6. Qb3 {[%clk 0:02:41]}  Nf6 {[%clk 0:02:50]} 7. Nc3 {[%clk 0:02:34]}  e6 {[%clk 0:02:43]} 8. Qxb7 {[%clk 0:02:03]}  Nc6 {[%clk 0:02:39]} 9. Qb3 {[%clk 0:01:46]}  Rb8 {[%clk 0:02:33]} 10. Qd1 {[%clk 0:01:46]}  e5 {[%clk 0:02:30]} 11. d3 {[%clk 0:01:21]}  Bd6 {[%clk 0:02:27]} 12. Be2 {[%clk 0:01:20]}  O-O {[%clk 0:02:23]} 13. O-O {[%clk 0:01:20]}  Bg4 {[%clk 0:02:24]} 14. h3 {[%clk 0:01:17]}  Bh5 {[%clk 0:02:22]} 15. b3 {[%clk 0:01:13]}  Qc7 {[%clk 0:02:16]} 16. Bb2 {[%clk 0:01:11]}  Rfd8 {[%clk 0:02:13]} 17. Rc1 {[%clk 0:01:04]}  e4 {[%clk 0:02:13]} 18. Nh4 {[%clk 0:01:05]}  Bg6 {[%clk 0:02:02]} 19. Nxg6 {[%clk 0:01:03]}  hxg6 {[%clk 0:02:02]} 20. Qc2 {[%clk 0:00:46]}  Qe7 {[%clk 0:01:53]} 21. dxe4 {[%clk 0:00:37]}  dxe4 {[%clk 0:01:52]} 22. Nxe4 {[%clk 0:00:32]}  Nxe4 {[%clk 0:01:20]} 23. Qxc6 {[%clk 0:00:32]}  Be5 {[%clk 0:01:03]} 24. Bxe5 {[%clk 0:00:26]}  Qxe5 {[%clk 0:01:04]} 25. Rfd1 {[%clk 0:00:24]}  Rxd1+ {[%clk 0:00:55]} 26. Bxd1 {[%clk 0:00:17]}  Rd8 {[%clk 0:00:51]} 27. Bf3 {[%clk 0:00:17]}  Nd2 {[%clk 0:00:48]} 28. Bg4 {[%clk 0:00:15]}  Ne4 {[%clk 0:00:44]} 29. Qc7 {[%clk 0:00:15]}  Qe8 {[%clk 0:00:38]} 30. Bf3 {[%clk 0:00:15]}  Nd2 {[%clk 0:00:31]} 31. Bb7 {[%clk 0:00:15]}  Kh7 {[%clk 0:00:30]} 32. Qf4 {[%clk 0:00:14]}  Qb5 {[%clk 0:00:26]} 33. Qh4+ {[%clk 0:00:13]}  Qh5 {[%clk 0:00:20]} 34. Qxd8 {[%clk 0:00:13]}  Qe2 {[%clk 0:00:20]} 35. Qh4+ {[%clk 0:00:12]}  Kg8 {[%clk 0:00:19]} 36. Rc8# {[%clk 0:00:11]} 1-0


[Site "https://www.chess.com"]

[Event "Titled Tuesday Blitz April 26 Late 2022"]
[White "Kosteniuk, Alexandra"]
[Black "Onslow, Alfie"]
[WhiteFideId "4128125"]
[BlackFideId "436976"]
[WhiteElo "2469"]
[BlackElo "1884"]
[Result "1-0"]
[Round "01"]
[TimeControl "180+1"]
[Date "2022.04.26"]
[WhiteClock "0:00:53"]
[BlackClock "0:00:02"]

1. e4 {[%clk 0:03:00]}  c5 {[%clk 0:02:57]} 2. Nf3 {[%clk 0:03:00]}  Nc6 {[%clk 0:02:57]} 3. Bb5 {[%clk 0:02:59]}  g6 {[%clk 0:02:57]} 4. c3 {[%clk 0:02:56]}  Bg7 {[%clk 0:02:50]} 5. O-O {[%clk 0:02:56]}  e5 {[%clk 0:02:48]} 6. Re1 {[%clk 0:02:48]}  d6 {[%clk 0:02:48]} 7. d4 {[%clk 0:02:46]}  cxd4 {[%clk 0:02:42]} 8. cxd4 {[%clk 0:02:46]}  Bd7 {[%clk 0:02:42]} 9. dxe5 {[%clk 0:02:41]}  dxe5 {[%clk 0:02:38]} 10. Nc3 {[%clk 0:02:40]}  Nge7 {[%clk 0:02:37]} 11. Bg5 {[%clk 0:02:39]}  f6 {[%clk 0:02:30]} 12. Be3 {[%clk 0:02:37]}  O-O {[%clk 0:02:28]} 13. Qb3+ {[%clk 0:02:31]}  Kh8 {[%clk 0:02:27]} 14. Red1 {[%clk 0:02:29]}  Qc8 {[%clk 0:02:25]} 15. Rac1 {[%clk 0:02:28]}  Be6 {[%clk 0:02:18]} 16. Nd5 {[%clk 0:02:24]}  a6 {[%clk 0:02:07]} 17. Bf1 {[%clk 0:02:15]}  f5 {[%clk 0:01:48]} 18. Ng5 {[%clk 0:02:05]}  fxe4 {[%clk 0:01:37]} 19. Nxe6 {[%clk 0:02:04]}  Qxe6 {[%clk 0:01:38]} 20. Nxe7 {[%clk 0:01:56]}  Qxb3 {[%clk 0:01:27]} 21. axb3 {[%clk 0:01:57]}  Nxe7 {[%clk 0:01:27]} 22. Rd7 {[%clk 0:01:57]}  Nf5 {[%clk 0:01:25]} 23. Bc5 {[%clk 0:01:44]}  Rfd8 {[%clk 0:01:07]} 24. Rxb7 {[%clk 0:01:40]}  Rac8 {[%clk 0:00:51]} 25. b4 {[%clk 0:01:37]}  Bh6 {[%clk 0:00:48]} 26. Re1 {[%clk 0:01:35]}  e3 {[%clk 0:00:45]} 27. fxe3 {[%clk 0:01:34]}  a5 {[%clk 0:00:35]} 28. e4 {[%clk 0:01:19]}  Nd4 {[%clk 0:00:19]} 29. Bb6 {[%clk 0:01:16]}  Rf8 {[%clk 0:00:11]} 30. bxa5 {[%clk 0:01:12]}  Be3+ {[%clk 0:00:04]} 31. Rxe3 {[%clk 0:01:00]}  Rc1 {[%clk 0:00:04]} 32. h3 {[%clk 0:00:58]}  Rcxf1+ {[%clk 0:00:04]} 33. Kh2 {[%clk 0:00:59]}  R1f6 {[%clk 0:00:03]} 34. a6 {[%clk 0:00:56]}  Nb5 {[%clk 0:00:03]} 35. a7 {[%clk 0:00:54]}  R6f7 {[%clk 0:00:02]} 36. Rxf7 {[%clk 0:00:53]}  Rxf7 {[%clk 0:00:02]} 37. a8=Q+ {[%clk 0:00:53]} 1-0


[Site "https://www.chess.com"]

[Event "Titled Tuesday Blitz April 26 Late 2022"]
[White "Kozin, Yuri"]
[Black "Ricaurte Lopez, Juan Carlos"]
[WhiteFideId "4129920"]
[BlackFideId "3600327"]
[WhiteElo "2578"]
[BlackElo "2209"]
[Result "1-0"]
[Round "01"]
[TimeControl "180+1"]
[Date "2022.04.26"]
[WhiteClock "0:00:52"]
[BlackClock "0:00:08"]

1. e4 {[%clk 0:02:58]}  e5 {[%clk 0:02:56]} 2. Nf3 {[%clk 0:02:58]}  d5 {[%clk 0:02:55]} 3. d4 {[%clk 0:02:57]}  dxe4 {[%clk 0:02:53]} 4. Nxe5 {[%clk 0:02:57]}  Bd6 {[%clk 0:02:52]} 5. Nc4 {[%clk 0:02:56]}  Nf6 {[%clk 0:02:50]} 6. Nxd6+ {[%clk 0:02:56]}  cxd6 {[%clk 0:02:48]} 7. Be2 {[%clk 0:02:56]}  O-O {[%clk 0:02:46]} 8. O-O {[%clk 0:02:56]}  Nc6 {[%clk 0:02:42]} 9. h3 {[%clk 0:02:52]}  h6 {[%clk 0:02:39]} 10. Bf4 {[%clk 0:02:51]}  d5 {[%clk 0:02:31]} 11. c3 {[%clk 0:02:51]}  Bf5 {[%clk 0:02:26]} 12. Nd2 {[%clk 0:02:49]}  Rc8 {[%clk 0:02:21]} 13. Nb3 {[%clk 0:02:44]}  Na5 {[%clk 0:02:16]} 14. Nc5 {[%clk 0:02:36]}  b6 {[%clk 0:02:09]} 15. Nb3 {[%clk 0:02:33]}  Nc4 {[%clk 0:02:07]} 16. Qc1 {[%clk 0:02:27]}  Qd7 {[%clk 0:01:58]} 17. Nd2 {[%clk 0:02:21]}  Nd6 {[%clk 0:01:34]} 18. a4 {[%clk 0:02:14]}  Bg6 {[%clk 0:01:29]} 19. a5 {[%clk 0:02:13]}  Nh5 {[%clk 0:01:23]} 20. Bh2 {[%clk 0:02:11]}  f5 {[%clk 0:01:19]} 21. axb6 {[%clk 0:02:04]}  axb6 {[%clk 0:01:20]} 22. Be5 {[%clk 0:02:02]}  f4 {[%clk 0:01:07]} 23. Bg4 {[%clk 0:02:00]}  Rf5 {[%clk 0:01:03]} 24. Ra6 {[%clk 0:01:50]}  Qb7 {[%clk 0:00:53]} 25. Qa1 {[%clk 0:01:45]}  Nf7 {[%clk 0:00:50]} 26. Ra7 {[%clk 0:01:38]}  Qc6 {[%clk 0:00:50]} 27. Bxf5 {[%clk 0:01:36]}  Bxf5 {[%clk 0:00:47]} 28. Qa4 {[%clk 0:01:29]}  Qg6 {[%clk 0:00:42]} 29. Kh1 {[%clk 0:01:19]}  Nxe5 {[%clk 0:00:18]} 30. dxe5 {[%clk 0:01:18]}  Qe6 {[%clk 0:00:17]} 31. Kh2 {[%clk 0:01:07]}  Qxe5 {[%clk 0:00:16]} 32. Ra8 {[%clk 0:01:00]}  Kh7 {[%clk 0:00:12]} 33. Rxc8 {[%clk 0:00:59]}  Bxc8 {[%clk 0:00:12]} 34. Qc6 {[%clk 0:00:55]}  e3 {[%clk 0:00:08]} 35. Nf3 {[%clk 0:00:52]} 1-0


[Site "https://www.chess.com"]

[Event "Titled Tuesday Blitz April 26 Late 2022"]
[White "Kukula, Pawel"]
[Black "Moskalenko, Alexander"]
[WhiteFideId "1115081"]
[BlackFideId "4155351"]
[WhiteElo "2152"]
[BlackElo "2434"]
[Result "0-1"]
[Round "01"]
[TimeControl "180+1"]
[Date "2022.04.26"]
[WhiteClock "0:00:23"]
[BlackClock "0:01:35"]

1. b4 {[%clk 0:02:52]}  e5 {[%clk 0:02:57]} 2. Bb2 {[%clk 0:02:51]}  Bxb4 {[%clk 0:02:57]} 3. Bxe5 {[%clk 0:02:51]}  Nf6 {[%clk 0:02:58]} 4. c3 {[%clk 0:02:51]}  Be7 {[%clk 0:02:57]} 5. e3 {[%clk 0:02:43]}  c5 {[%clk 0:02:56]} 6. Bxf6 {[%clk 0:02:43]}  Bxf6 {[%clk 0:02:54]} 7. g3 {[%clk 0:02:43]}  d5 {[%clk 0:02:53]} 8. d4 {[%clk 0:02:38]}  Qa5 {[%clk 0:02:52]} 9. Bg2 {[%clk 0:02:31]}  cxd4 {[%clk 0:02:44]} 10. exd4 {[%clk 0:02:30]}  O-O {[%clk 0:02:40]} 11. Ne2 {[%clk 0:02:30]}  b6 {[%clk 0:02:36]} 12. O-O {[%clk 0:02:29]}  Bb7 {[%clk 0:02:28]} 13. Nf4 {[%clk 0:02:27]}  Rc8 {[%clk 0:02:19]} 14. Nh5 {[%clk 0:02:19]}  Be7 {[%clk 0:02:14]} 15. Qg4 {[%clk 0:02:17]}  g6 {[%clk 0:02:14]} 16. Nf4 {[%clk 0:02:12]}  Bd6 {[%clk 0:02:04]} 17. Nxd5 {[%clk 0:02:03]}  Kg7 {[%clk 0:01:57]} 18. Qg5 {[%clk 0:01:28]}  Nd7 {[%clk 0:01:44]} 19. Qg4 {[%clk 0:00:38]}  Bxd5 {[%clk 0:01:42]} 20. Qxd7 {[%clk 0:00:36]}  Bxg2 {[%clk 0:01:43]} 21. Kxg2 {[%clk 0:00:34]}  Qd5+ {[%clk 0:01:43]} 22. Kg1 {[%clk 0:00:34]}  Rc7 {[%clk 0:01:43]} 23. Qg4 {[%clk 0:00:33]}  Rac8 {[%clk 0:01:43]} 24. a4 {[%clk 0:00:32]}  h5 {[%clk 0:01:42]} 25. Qe2 {[%clk 0:00:28]}  h4 {[%clk 0:01:39]} 26. Re1 {[%clk 0:00:22]}  hxg3 {[%clk 0:01:37]} 27. hxg3 {[%clk 0:00:23]}  Re7 {[%clk 0:01:36]} 28. Qf1 {[%clk 0:00:23]}  Rh8 {[%clk 0:01:35]} 0-1


[Site "https://www.chess.com"]

[Event "Titled Tuesday Blitz April 26 Late 2022"]
[White "Lashkin, Jegor"]
[Black "Sanchez, Robert"]
[WhiteFideId "13907808"]
[BlackFideId "2034360"]
[WhiteElo "2368"]
[BlackElo "2420"]
[Result "1-0"]
[Round "01"]
[TimeControl "180+1"]
[Date "2022.04.26"]
[WhiteClock "0:01:39"]
[BlackClock "0:00:48"]

1. b3 {[%clk 0:03:00]}  e5 {[%clk 0:02:52]} 2. Bb2 {[%clk 0:03:01]}  Nc6 {[%clk 0:02:52]} 3. c4 {[%clk 0:03:00]}  Nf6 {[%clk 0:02:52]} 4. Nc3 {[%clk 0:03:00]}  Bc5 {[%clk 0:02:51]} 5. e3 {[%clk 0:03:00]}  O-O {[%clk 0:02:49]} 6. d3 {[%clk 0:03:00]}  a5 {[%clk 0:02:46]} 7. Nf3 {[%clk 0:03:00]}  d6 {[%clk 0:02:46]} 8. Be2 {[%clk 0:03:01]}  h6 {[%clk 0:02:45]} 9. O-O {[%clk 0:03:01]}  Re8 {[%clk 0:02:46]} 10. a3 {[%clk 0:03:01]}  Ne7 {[%clk 0:02:19]} 11. d4 {[%clk 0:03:01]}  exd4 {[%clk 0:02:19]} 12. Nxd4 {[%clk 0:03:01]}  Nf5 {[%clk 0:02:14]} 13. Nxf5 {[%clk 0:03:01]}  Bxf5 {[%clk 0:02:15]} 14. Bf3 {[%clk 0:03:02]}  Rb8 {[%clk 0:02:13]} 15. Qd2 {[%clk 0:02:58]}  Bg4 {[%clk 0:01:51]} 16. Bxg4 {[%clk 0:02:56]}  Nxg4 {[%clk 0:01:51]} 17. Rae1 {[%clk 0:02:49]}  Qg5 {[%clk 0:01:45]} 18. Nd5 {[%clk 0:02:46]}  c6 {[%clk 0:01:35]} 19. Nf4 {[%clk 0:02:45]}  Ne5 {[%clk 0:01:29]} 20. Qe2 {[%clk 0:02:33]}  Ng6 {[%clk 0:01:21]} 21. Nd3 {[%clk 0:02:24]}  Bb6 {[%clk 0:01:19]} 22. Qf3 {[%clk 0:02:19]}  Bc7 {[%clk 0:01:12]} 23. Qg3 {[%clk 0:02:13]}  Qf5 {[%clk 0:01:10]} 24. Rd1 {[%clk 0:02:12]}  Rbc8 {[%clk 0:01:10]} 25. Qf3 {[%clk 0:02:03]}  Qg5 {[%clk 0:01:07]} 26. g3 {[%clk 0:01:58]}  Nh4 {[%clk 0:01:05]} 27. Qf4 {[%clk 0:01:57]}  Qxf4 {[%clk 0:01:04]} 28. Nxf4 {[%clk 0:01:57]}  Nf3+ {[%clk 0:01:04]} 29. Kg2 {[%clk 0:01:57]}  Ne5 {[%clk 0:01:03]} 30. Rd2 {[%clk 0:01:56]}  Rcd8 {[%clk 0:00:59]} 31. a4 {[%clk 0:01:55]}  Ng4 {[%clk 0:00:57]} 32. h3 {[%clk 0:01:51]}  Ne5 {[%clk 0:00:57]} 33. Rfd1 {[%clk 0:01:51]}  g5 {[%clk 0:00:52]} 34. Nh5 {[%clk 0:01:49]}  Re6 {[%clk 0:00:50]} 35. f4 {[%clk 0:01:49]}  Ng6 {[%clk 0:00:48]} 36. f5 {[%clk 0:01:47]}  Rxe3 {[%clk 0:00:48]} 37. fxg6 {[%clk 0:01:47]}  fxg6 {[%clk 0:00:49]} 38. Nf6+ {[%clk 0:01:47]}  Kf7 {[%clk 0:00:49]} 39. Ng4 {[%clk 0:01:40]}  Rxb3 {[%clk 0:00:48]} 40. Rf2+ {[%clk 0:01:39]}  Ke6 {[%clk 0:00:48]} 1-0


[Site "https://www.chess.com"]

[Event "Titled Tuesday Blitz April 26 Late 2022"]
[White "Leiva, Gianmarco"]
[Black "Kanyamarala, Trisha"]
[WhiteFideId "3804399"]
[BlackFideId "45004722"]
[WhiteElo "2323"]
[BlackElo "2079"]
[Result "1-0"]
[Round "01"]
[TimeControl "180+1"]
[Date "2022.04.26"]
[WhiteClock "0:00:40"]
[BlackClock "0:00:37"]

1. e4 {[%clk 0:03:00]}  c5 {[%clk 0:02:59]} 2. Nf3 {[%clk 0:03:00]}  Nc6 {[%clk 0:02:59]} 3. Bb5 {[%clk 0:03:00]}  g6 {[%clk 0:02:59]} 4. O-O {[%clk 0:03:00]}  Bg7 {[%clk 0:02:58]} 5. c3 {[%clk 0:02:59]}  a6 {[%clk 0:02:57]} 6. Ba4 {[%clk 0:02:59]}  b5 {[%clk 0:02:55]} 7. Bc2 {[%clk 0:03:00]}  c4 {[%clk 0:02:55]} 8. a4 {[%clk 0:02:56]}  Bb7 {[%clk 0:02:54]} 9. Na3 {[%clk 0:02:56]}  Qb6 {[%clk 0:02:50]} 10. d3 {[%clk 0:02:56]}  cxd3 {[%clk 0:02:48]} 11. Qxd3 {[%clk 0:02:56]}  b4 {[%clk 0:02:44]} 12. Nc4 {[%clk 0:02:55]}  Qc7 {[%clk 0:02:44]} 13. Be3 {[%clk 0:02:55]}  Nf6 {[%clk 0:02:37]} 14. Bb6 {[%clk 0:01:45]}  Qb8 {[%clk 0:02:34]} 15. h3 {[%clk 0:01:41]}  d6 {[%clk 0:02:08]} 16. a5 {[%clk 0:01:31]}  O-O {[%clk 0:02:05]} 17. Rfe1 {[%clk 0:01:26]}  Nd7 {[%clk 0:01:57]} 18. Ba4 {[%clk 0:01:26]}  Nde5 {[%clk 0:01:50]} 19. Nfxe5 {[%clk 0:01:25]}  Nxe5 {[%clk 0:01:50]} 20. Nxe5 {[%clk 0:01:25]}  Bxe5 {[%clk 0:01:50]} 21. cxb4 {[%clk 0:01:16]}  Bxb2 {[%clk 0:01:49]} 22. Rab1 {[%clk 0:01:14]}  Bg7 {[%clk 0:01:47]} 23. b5 {[%clk 0:01:11]}  axb5 {[%clk 0:01:47]} 24. Bxb5 {[%clk 0:01:12]}  Qc8 {[%clk 0:01:45]} 25. Rec1 {[%clk 0:01:11]}  Qe6 {[%clk 0:01:45]} 26. f3 {[%clk 0:01:00]}  Qa2 {[%clk 0:01:35]} 27. Bc4 {[%clk 0:00:53]}  Qa4 {[%clk 0:01:32]} 28. Bb3 {[%clk 0:00:49]}  Qe8 {[%clk 0:01:24]} 29. Rc7 {[%clk 0:00:46]}  Ba6 {[%clk 0:01:20]} 30. Bc4 {[%clk 0:00:44]}  Bxc4 {[%clk 0:00:53]} 31. Qxc4 {[%clk 0:00:45]}  Rc8 {[%clk 0:00:53]} 32. Rxc8 {[%clk 0:00:38]}  Qxc8 {[%clk 0:00:54]} 33. Qxc8 {[%clk 0:00:39]}  Rxc8 {[%clk 0:00:54]} 34. a6 {[%clk 0:00:39]}  Ra8 {[%clk 0:00:54]} 35. a7 {[%clk 0:00:40]}  h5 {[%clk 0:00:49]} 36. Be3 {[%clk 0:00:40]}  d5 {[%clk 0:00:37]} 37. Rb8+ {[%clk 0:00:40]} 1-0


[Site "https://www.chess.com"]